bitfinex-derivatives/quotes_ETHF0:USTF0_20250520
["timestamp","ask_amount","ask_price","bid_price","bid_amount"]
[1747762504142,0.80348,2488.2,2488.1,0.43653723]
[1747762504333,2.13918,2488.2,2488.1,0.43653723]
[1747762504534,4.148705,2488.2,2488.1,0.43653723]
[1747762504937,4.148735,2488.2,2488.1,0.80351]
[1747762505140,0.80351,2488.1,2488.0,0.80953721]
[1747762505341,5.34701,2488.1,2488.0,0.00601721]
[1747762505643,7.356615,2488.1,2488.0,0.00601721]
[1747762506038,6.553105,2488.1,2488.0,0.80955721]
[1747762506248,3.2078,2488.1,2488.0,15.75916221]
[1747762507836,0.66593928,2488.6,2488.5,0.80338]
[1747762508039,9.28e-06,2488.6,2488.5,16.95118]
[1747762508339,9.28e-06,2488.6,2488.5,23.49258]
[1747762508541,9.28e-06,2488.6,2488.5,5.55258]
[1747762508736,9.28e-06,2488.6,2488.5,18.49358]
[1747762509139,9.28e-06,2488.6,2488.5,21.70138]
[1747762509345,9.28e-06,2488.6,2488.5,26.70138]
[1747762509543,0.00601721,2488.8,2488.7,0.80332]
[1747762509739,0.00601721,2488.8,2488.7,2.81235999]
[1747762509945,0.00601721,2488.8,2488.7,7.81235999]
[1747762510146,0.00601721,2488.8,2488.7,8.60945999]
[1747762510647,0.00601721,2488.8,2488.7,16.55045999]
[1747762511948,0.00601721,2488.8,2488.7,16.54945999]
[1747762512338,0.00601721,2488.8,2488.7,16.76752259]
[1747762512541,0.00601721,2488.8,2488.7,3.82752259]
[1747762512739,0.00601721,2488.8,2488.7,16.76752259]
[1747762514649,0.00601721,2488.8,2488.7,16.54945999]
[1747762516349,0.00601721,2488.8,2488.7,16.87079873]
[1747762517149,7.21e-06,2488.8,2488.7,21.87079873]
[1747762517948,7.21e-06,2488.8,2488.7,22.30733596]
[1747762518255,7.21e-06,2488.8,2488.7,4.36733596]
[1747762518444,7.21e-06,2488.8,2488.7,17.29233596]
[1747762519055,7.21e-06,2488.8,2488.7,16.85579873]
[1747762519351,7.21e-06,2488.8,2488.7,21.85579873]
[1747762519854,7.21e-06,2488.8,2488.7,30.41179873]
[1747762520053,7.21e-06,2488.8,2488.7,16.85479873]
[1747762520355,7.21e-06,2488.8,2488.7,30.41179873]
[1747762522551,7.21e-06,2488.8,2488.7,16.85479873]
[1747762522948,0.80328721,2488.8,2488.7,16.85479873]
[1747762523147,2.81232721,2488.8,2488.7,0.32133874]
[1747762524254,6.02012721,2488.8,2488.7,0.32133874]
[1747762525753,12.22511721,2488.8,2488.6,0.80332]
[1747762525956,1.3907,2488.7,2488.6,0.80335]
[1747762526161,1.3907,2488.7,2488.5,0.80336]
[1747762526361,0.80338,2488.6,2488.5,0.80336]
[1747762526750,0.80338,2488.5,2488.4,0.80338]
[1747762526954,4.01118,2488.5,2488.4,0.80338]
[1747762527148,7.411165,2488.5,2488.4,0.80338]
[1747762528360,6.607785,2488.5,2488.2,0.21830812]
[1747762528551,0.80341,2488.4,2488.3,12.925]
[1747762528750,2.1318,2488.4,2488.3,13.72845]
[1747762528954,4.944575,2488.4,2488.3,13.72845]
[1747762529151,2.009365,2488.4,2488.3,13.72845]
[1747762529453,0.78440721,2488.8,2488.4,0.80341]
[1747762529454,0.80335,2488.7,2488.4,0.80341]
[1747762529653,0.80335,2488.7,2488.6,0.80332]
[1747762529859,0.80335,2488.7,2488.6,13.72932]
[1747762530058,7.21e-06,2488.8,2488.7,0.80332]
[1747762530455,7.21e-06,2488.8,2488.7,2.81235999]
[1747762530866,7.21e-06,2488.8,2488.7,15.73835999]
[1747762531159,7.21e-06,2488.8,2488.7,17.07715999]
[1747762531560,7.21e-06,2488.8,2488.7,15.28642812]
[1747762531761,7.21e-06,2488.8,2488.7,17.29546811]
[1747762532060,7.21e-06,2488.8,2488.7,15.28642812]
[1747762532259,7.21e-06,2488.8,2488.7,4.36946811]
[1747762532459,7.21e-06,2488.8,2488.7,17.29446811]
[1747762533872,7.21e-06,2488.8,2488.7,20.50226811]
[1747762534165,3.2078,2489.4,2489.3,0.80312]
[1747762534368,0.99062266,2489.8,2489.7,0.80299]
[1747762534562,2.99885766,2489.8,2489.7,0.80299]
[1747762534764,2.008235,2489.8,2489.7,0.80299]
[1747762535062,2.008235,2489.8,2489.7,13.72799]
[1747762535765,3.2078,2489.9,2489.8,0.80296]
[1747762535973,3.2078,2489.9,2489.8,2.16746]
[1747762536160,3.2078,2489.9,2489.8,4.175615]
[1747762536877,1.79953987,2490.0,2489.8,4.175615]
[1747762536878,0.00601721,2490.0,2489.9,0.80293]
[1747762537070,0.00601721,2490.0,2489.9,2.11873]
[1747762537376,0.00601721,2490.0,2489.9,4.1268]
[1747762538075,0.00601721,2490.0,2489.9,4.73909627]
[1747762538672,0.00601721,2490.0,2489.9,4.88451741]
[1747762539066,7.21e-06,2490.0,2489.9,9.88451741]
[1747762539365,7.21e-06,2490.0,2489.9,12.62451741]
[1747762540364,2.0063,2491.2,2491.1,0.80252]
[1747762540365,3.2078,2491.2,2491.1,0.80252]
[1747762540576,0.80254,2491.1,2491.0,12.923]
[1747762540873,0.80257,2491.0,2490.9,12.923]
[1747762541269,2.007265,2491.0,2490.8,13.72262]
[1747762541474,0.773,2491.1,2491.0,0.80257]
[1747762541677,2.780265,2491.1,2491.0,0.80257]
[1747762542273,3.582805,2491.1,2491.0,0.80257]
[1747762542469,2.780265,2491.1,2490.8,14.2604]
[1747762542669,2.780265,2491.1,2491.0,0.80257]
[1747762542876,3.21381721,2491.2,2491.1,0.80254]
[1747762543276,2.01312221,2491.2,2491.1,0.80254]
[1747762543577,2.00636,2491.1,2490.7,0.00601721]
[1747762543881,0.80264,2490.8,2490.7,0.00601721]
[1747762544370,0.8028,2490.3,2490.2,0.32110617]
[1747762544680,4.01059,2490.4,2490.3,0.8028]
[1747762544870,3.2078,2490.4,2490.3,0.8028]
[1747762545070,5.21555,2490.4,2490.3,0.8028]
[1747762545673,3.2078,2490.4,2490.3,2.81055]
[1747762546074,3.2078,2490.4,2490.3,15.72855]
[1747762546470,3.2078,2490.4,2490.3,17.07025]
[1747762546671,5.21555,2490.4,2490.2,0.80283]
[1747762546875,6.01833,2490.4,2490.3,12.918]
[1747762547076,5.21555,2490.4,2490.3,13.7208]
[1747762547270,6.01832,2490.4,2490.3,12.918]
[1747762547474,6.81502,2490.4,2490.3,12.918]
[1747762547676,4.80727,2490.4,2490.3,12.918]
[1747762547976,6.81502,2490.4,2490.3,12.918]
[1747762548175,6.01225,2490.4,2490.3,13.7198]
[1747762548375,6.81502,2490.4,2490.3,12.917]
[1747762548966,6.01225,2490.4,2490.3,13.7198]
[1747762549175,6.01225,2490.4,2490.3,0.8028]
[1747762549579,7.29035,2490.4,2490.3,0.8028]
[1747762550079,4.08255,2490.4,2490.3,0.8028]
[1747762550475,4.08255,2490.4,2490.1,0.00601721]
[1747762550680,0.80282,2490.3,2490.2,13.70483]
[1747762550881,2.08092,2490.3,2490.2,13.70483]
[1747762551083,3.28593,2490.3,2490.2,13.70483]
[1747762552080,3.28593,2490.3,2490.2,14.99533]
[1747762553684,3.2078,2490.5,2490.2,16.20033]
[1747762553983,0.8027,2490.7,2490.6,0.8027]
[1747762553984,2.1113,2490.7,2490.6,0.8027]
[1747762554179,0.80274,2490.6,2490.5,0.80272]
[1747762554382,2.11134,2490.6,2490.5,0.80272]
[1747762554578,3.31619,2490.6,2490.5,0.80272]
[1747762554779,4.01045,2490.8,2490.7,0.80267]
[1747762555083,3.2078,2490.8,2490.7,0.80267]
[1747762556081,5.215225,2490.8,2490.7,0.80267]
[1747762556984,6.017865,2490.8,2490.7,0.80267]
[1747762557184,7.429965,2490.8,2490.7,13.70367]
[1747762557484,6.627325,2490.8,2490.7,13.70367]
[1747762557687,7.429965,2490.8,2490.7,13.70367]
[1747762557982,0.7821,2491.0,2490.9,0.80261]
[1747762558183,0.78881721,2491.2,2491.1,0.80254]
[1747762558184,0.00601721,2491.2,2491.1,0.80254]
[1747762558380,0.80258,2491.1,2491.0,0.80256]
[1747762558585,0.80258,2491.1,2491.0,13.70356]
[1747762558780,4.207425,2491.1,2491.0,12.901]
[1747762559086,4.996625,2491.1,2491.0,12.901]
[1747762559282,2.00644,2491.0,2490.5,1.6591]
[1747762559487,0.8027,2490.7,2490.6,12.901]
[1747762559990,0.8027,2490.6,2490.5,0.21709947]
[1747762560286,2.2004,2490.6,2490.5,13.11809947]
[1747762560487,4.20799,2490.6,2490.5,13.92083947]
[1747762560690,4.20799,2490.6,2490.5,13.70374]
[1747762560891,3.40529,2490.6,2490.5,13.70374]
[1747762561691,4.20799,2490.6,2490.5,12.901]
[1747762561993,0.8028,2490.3,2490.2,13.92092947]
[1747762562190,4.0106,2490.3,2490.2,13.11809947]
[1747762562391,5.21563,2490.3,2490.2,13.92092947]
[1747762562985,7.31133,2490.3,2490.2,14.02501402]
[1747762563288,6.50853,2490.3,2490.2,14.02501402]
[1747762564293,7.31133,2490.3,2490.2,14.02501402]
[1747762564491,6.50853,2490.3,2490.2,14.02501402]
[1747762564793,7.31133,2490.3,2490.2,14.02501402]
[1747762565295,6.50853,2490.3,2490.2,14.02501402]
[1747762565689,7.31133,2490.3,2490.2,14.02501402]
[1747762565884,6.50853,2490.3,2490.2,14.02501402]
[1747762566089,5.21563,2490.3,2490.2,14.02501402]
[1747762566288,3.2078,2490.3,2490.2,17.44814402]
[1747762566487,1.3131,2490.6,2490.2,16.64531402]
[1747762566693,3.2078,2490.7,2490.6,0.8027]
[1747762566991,3.2078,2490.7,2490.6,13.7037]
[1747762567393,4.5209,2490.7,2490.6,13.7037]
[1747762567597,5.32357,2490.7,2490.6,13.7037]
[1747762568097,5.21531,2490.7,2490.6,0.8027]
[1747762568292,5.32837,2491.0,2490.9,0.80261]
[1747762568797,6.533065,2491.0,2490.9,0.80261]
[1747762569888,6.533065,2491.0,2490.9,1.12379402]
[1747762570092,6.533065,2491.0,2490.9,1.3419204]
[1747762570797,3.2078,2491.0,2490.9,4.6613854]
[1747762571001,0.00601721,2491.2,2491.1,0.80254]
[1747762571504,0.00601721,2491.2,2491.1,2.809645]
[1747762571702,5.22092221,2491.2,2491.0,2.38465]
[1747762572004,0.80254,2491.1,2491.0,2.38465]
[1747762572195,1.4186,2491.1,2491.0,2.38465]
[1747762572399,3.425785,2491.1,2491.0,16.81497638]
[1747762573397,2.007185,2491.1,2491.0,16.81497638]
[1747762573600,3.21381721,2491.2,2491.1,0.80254]
[1747762573800,5.22096221,2491.2,2491.1,0.80254]
[1747762573995,3.21381721,2491.2,2491.1,0.80254]
[1747762574200,5.22092221,2491.2,2491.1,0.80254]
[1747762574497,0.80254,2491.1,2491.0,0.53919393]
[1747762574693,2.18414,2491.1,2491.0,0.53919393]
[1747762574896,3.388785,2491.1,2491.0,1.34176393]
[1747762575096,3.388785,2491.1,2491.0,1.12363755]
[1747762575300,3.388785,2491.1,2491.0,2.48323755]
[1747762575500,3.21381721,2491.2,2491.1,0.80254]
[1747762576002,3.21381721,2491.2,2491.1,4.26135698]
[1747762576692,3.21381721,2491.2,2491.1,17.16135698]
[1747762576891,0.00601721,2491.2,2491.1,17.16135698]
[1747762577304,3.21381721,2491.2,2491.1,4.26135698]
[1747762577605,3.21381721,2491.2,2491.1,16.87081255]
[1747762578005,3.21381721,2491.2,2491.1,14.86370755]
[1747762578006,5.22092221,2491.2,2491.1,14.86370755]
[1747762579108,5.22092221,2491.2,2491.1,15.08170733]
[1747762579807,6.59062221,2491.2,2491.1,15.08170733]
[1747762580806,3.21381721,2491.2,2491.1,17.08881233]
[1747762581916,1.3697,2491.7,2491.6,0.80238]
[1747762582106,3.2078,2491.9,2491.8,0.80232]
[1747762582416,5.21442,2491.9,2491.8,0.80232]
[1747762583109,3.2078,2491.9,2491.8,2.20312]
[1747762583306,5.21434,2491.9,2491.8,3.35898755]
[1747762583506,3.2078,2491.9,2491.8,18.24952755]
[1747762584914,4.01008,2491.9,2491.8,3.12992755]
[1747762585118,3.2078,2491.9,2491.8,16.01392755]
[1747762585424,3.2078,2491.9,2491.8,15.40818755]
[1747762585712,3.2078,2491.9,2491.8,17.41472755]
[1747762585919,5.21434,2491.9,2491.8,2.52418755]
[1747762586114,6.01662,2491.9,2491.8,14.00738755]
[1747762587417,6.01662,2491.9,2491.8,13.68632]
[1747762587612,3.2078,2491.9,2491.8,15.69286]
[1747762587920,3.2078,2491.9,2491.8,17.08826]
[1747762588702,6.01662,2491.9,2491.8,2.19772]
[1747762588911,7.39022,2491.9,2491.8,15.08072]
[1747762589613,0.80235,2491.7,2491.6,0.79301721]
[1747762589813,0.80235,2491.7,2491.6,13.67501721]
[1747762590026,0.80235,2491.7,2491.6,0.79301721]
[1747762590224,0.80235,2491.7,2491.6,13.67501721]
[1747762590524,2.0067,2491.7,2491.6,14.47736721]
[1747762590722,4.5814,2491.9,2491.6,13.67501721]
[1747762590926,6.58802,2491.9,2491.8,0.80232]
[1747762591517,0.81541721,2492.1,2492.0,0.80225]
[1747762591721,0.00601721,2492.1,2492.0,0.80225]
[1747762591926,2.01239721,2492.1,2492.0,13.68325]
[1747762592129,0.00601721,2492.1,2492.0,15.03005]
[1747762592427,0.00601721,2492.1,2492.0,17.03643]
[1747762593227,0.00601721,2492.1,2492.0,4.15543]
[1747762593428,0.00601721,2492.1,2492.0,17.03643]
[1747762593726,2.81461721,2492.1,2492.0,13.4197064]
[1747762593926,2.81461721,2492.1,2492.0,0.5387064]
[1747762594226,4.98791721,2492.1,2492.0,0.5387064]
[1747762595118,0.80235,2491.7,2491.6,0.00601721]
[1747762595322,4.01015,2491.7,2491.6,0.00601721]
[1747762595533,6.01685,2491.7,2491.6,0.00601721]
[1747762596423,11.01685,2491.7,2491.6,0.00601721]
[1747762601227,11.01685,2491.7,2491.6,7.21e-06]
[1747762602833,0.80264,2490.8,2490.7,0.21779055]
[1747762603135,4.01044,2490.8,2490.7,0.21779055]
[1747762603335,6.017865,2490.8,2490.7,0.21779055]
[1747762604232,4.01355,2490.6,2490.1,0.57876868]
[1747762604535,4.01063,2490.2,2490.1,2.8e-06]
[1747762604737,0.8029,2490.0,2489.9,1.48e-06]
[1747762605123,7.81097,2490.0,2489.9,1.48e-06]
[1747762605633,0.80296,2489.8,2489.7,8.69e-06]
[1747762605936,16.89476,2489.8,2489.7,8.69e-06]
[1747762606138,23.902995,2489.8,2489.7,8.69e-06]
[1747762606332,26.158595,2489.8,2489.7,8.69e-06]
[1747762609141,21.161595,2489.8,2489.7,8.69e-06]
[1747762609636,8.274595,2489.8,2489.7,8.69e-06]
[1747762610336,6.018995,2489.8,2489.7,8.69e-06]
[1747762610535,4.01076,2489.8,2489.7,8.69e-06]
[1747762611042,4.01076,2489.8,2489.7,0.80299869]
[1747762611242,4.01076,2489.8,2489.7,8.69e-06]
[1747762611636,6.018995,2489.8,2489.7,8.69e-06]
[1747762612336,0.80335,2488.6,2488.3,12.87]
[1747762612639,0.80322,2489.0,2488.9,1.3026]
[1747762612837,4.01102,2489.0,2488.9,1.3026]
[1747762613040,0.80338,2488.5,2488.4,0.8257]
[1747762613236,0.80351,2488.1,2488.0,1.79448161]
[1747762613742,0.80351,2488.1,2488.0,4.60762661]
[1747762613937,3.2078,2488.5,2488.0,3.80408661]
[1747762614137,0.8035,2488.2,2488.1,0.80351]
[1747762614338,0.80351,2488.1,2488.0,1.79448161]
[1747762614544,0.80351,2488.1,2488.0,2.1775]
[1747762614945,0.80353,2488.1,2487.9,3.29266477]
[1747762615137,0.80353,2488.1,2488.0,1.3956]
[1747762616045,0.80353,2488.1,2488.0,2.19914]
[1747762616244,0.80353,2488.1,2488.0,1.3956]
[1747762616439,0.80353,2488.1,2488.0,2.19914]
[1747762616639,0.80344,2488.4,2488.0,3.405205]
[1747762616841,3.21381721,2488.7,2488.6,0.80335]
[1747762617343,3.2078,2489.0,2488.9,0.80325]
[1747762617740,4.01102,2489.0,2488.9,2.00888]
[1747762617939,4.01102,2489.0,2488.7,1.3956]
[1747762617940,5.21668,2489.0,2488.7,1.3956]
[1747762618142,0.80328,2488.8,2488.7,1.3956]
[1747762618541,0.80327,2488.9,2488.7,1.3956]
[1747762618936,3.21381721,2489.0,2488.9,0.80325]
[1747762619137,0.80326,2488.9,2488.8,0.80326]
[1747762619346,0.80326,2488.9,2488.8,2.19456]
[1747762619546,0.80326,2488.9,2488.8,4.20352]
[1747762620646,4.01705721,2489.0,2488.9,0.80325]
[1747762620842,2.45803808,2489.0,2488.9,20.07055]
[1747762621048,0.00601721,2489.0,2488.9,22.89163]
[1747762621246,0.00601721,2489.0,2488.9,25.63163]
[1747762621847,0.80923721,2489.0,2488.9,19.82838]
[1747762622048,4.01703721,2489.0,2488.9,20.63163]
[1747762622249,4.01703721,2489.0,2488.9,17.89163]
[1747762622550,6.02591721,2489.0,2488.9,15.0795]
[1747762623347,6.02591721,2489.0,2488.9,1.3913]
[1747762623748,0.80332,2488.7,2488.6,12.876]
[1747762623953,0.80335,2488.6,2488.5,1.3653]
[1747762624141,3.2078,2488.7,2488.3,0.7751]
[1747762624349,3.2078,2488.4,2488.1,1.3653]
[1747762624649,0.80348,2488.2,2488.1,1.3653]
[1747762624951,0.80348,2488.2,2488.1,2.16881]
[1747762625152,0.80348,2488.2,2488.1,4.178335]
[1747762625355,0.80348,2488.2,2488.1,3.374825]
[1747762625553,2.813005,2488.2,2488.1,1.3653]
[1747762627350,2.813005,2488.2,2488.1,2.16881]
[1747762627656,2.813005,2488.2,2488.1,1.3653]
[1747762629752,0.80357,2487.9,2487.8,0.00601721]
[1747762629951,4.01137,2487.9,2487.8,0.00601721]
[1747762630149,6.02113501,2487.9,2487.8,0.00601721]
[1747762631250,3.2078,2487.9,2487.8,2.81939221]
[1747762631445,4.01137,2487.9,2487.8,2.81939221]
[1747762631754,6.02113501,2487.9,2487.8,2.01578221]
[1747762632059,6.02113501,2487.9,2487.8,0.00601721]
[1747762633555,6.02113501,2487.9,2487.8,1.33671721]
[1747762634952,6.02113501,2487.9,2487.8,0.00601721]
[1747762635148,6.02113501,2487.9,2487.8,7.21e-06]
[1747762636560,18.90213501,2487.9,2487.8,7.21e-06]
[1747762637264,6.02113501,2487.9,2487.8,7.21e-06]
[1747762637757,23.90313501,2487.9,2487.8,7.21e-06]
[1747762637959,0.8037,2487.5,2487.4,0.32158087]
[1747762638163,0.80383,2487.1,2487.0,0.29102096]
[1747762638361,4.01163,2487.1,2487.0,0.29102096]
[1747762638561,6.022045,2487.1,2487.0,0.29102096]
[1747762639368,11.022045,2487.1,2487.0,0.29102096]
[1747762639570,0.8039,2486.9,2486.8,0.00602979]
[1747762639964,2.81447501,2486.9,2486.8,0.00602979]
[1747762640162,3.2078,2487.1,2487.0,0.80387]
[1747762640468,0.00602979,2487.3,2487.2,0.8038]
[1747762640669,3.2078,2487.7,2487.1,4.5684]
[1747762640858,3.2078,2487.7,2487.6,0.80367]
[1747762641061,4.01144,2487.7,2487.6,0.80367]
[1747762641366,0.8037,2487.6,2487.5,0.80368]
[1747762641567,3.2078,2487.7,2487.3,2.1548]
[1747762641762,4.01154,2487.4,2487.3,2.1548]
[1747762641968,0.8038,2487.2,2487.1,0.8081]
[1747762642170,3.2078,2487.4,2487.1,2.1687]
[1747762642472,4.01155,2487.4,2487.3,0.80377]
[1747762643073,4.01155,2487.4,2487.3,2.01017]
[1747762643266,4.01155,2487.4,2487.3,6.11077]
[1747762643469,6.02172,2487.4,2487.3,2.74]
[1747762643973,11.02172,2487.4,2487.3,2.74]
[1747762644173,0.80383,2487.1,2487.0,0.08486477]
[1747762644475,4.01163,2487.1,2487.0,0.08486477]
[1747762644662,6.022045,2487.1,2487.0,0.08486477]
[1747762646168,0.8039,2486.9,2486.8,1.31732979]
[1747762646364,0.8039,2486.9,2486.8,0.00602979]
[1747762646563,2.81447501,2486.9,2486.8,0.80995979]
[1747762646964,2.81447501,2486.9,2486.8,0.00602979]
[1747762647364,3.2078,2487.1,2486.8,0.80995979]
[1747762647565,3.2078,2487.4,2487.0,0.80387]
[1747762647771,0.8038,2487.3,2487.2,0.80378]
[1747762647978,0.8038,2487.2,2487.1,2.19222]
[1747762648375,0.8038,2487.2,2487.1,4.202555]
[1747762649877,0.8038,2487.2,2487.1,2.19222]
[1747762650378,0.8038,2487.2,2487.1,1.3884]
[1747762650579,0.8038,2487.2,2487.1,1.70999819]
[1747762650779,2.814135,2487.2,2487.1,0.32159819]
[1747762651679,2.814135,2487.2,2486.8,0.00602979]
[1747762651680,0.8039,2486.9,2486.8,0.00602979]
[1747762651980,0.80406,2486.4,2486.3,0.57916251]
[1747762652279,4.01186,2486.4,2486.3,2.74]
[1747762652477,6.02284,2486.4,2486.3,2.74]
[1747762653282,0.80412,2486.2,2486.1,0.00602979]
[1747762653876,2.81526,2486.2,2486.1,0.00602979]
[1747762654782,0.80412,2486.2,2486.1,2.82132979]
[1747762654977,0.80411,2486.3,2486.2,0.8041]
[1747762655169,3.21382979,2486.4,2486.3,0.80409]
[1747762655375,3.21382979,2486.4,2486.3,2.81507]
[1747762655775,4.01788979,2486.4,2486.3,2.81507]
[1747762656276,0.81008979,2486.4,2486.3,5.55507]
[1747762656471,4.01788979,2486.4,2486.3,4.75098]
[1747762657084,4.01788979,2486.4,2486.3,2.01098]
[1747762657382,4.01788979,2486.4,2486.3,2.81507]
[1747762658185,4.01788979,2486.4,2486.3,5.55507]
[1747762658686,3.21382979,2486.4,2486.3,5.55507]
[1747762658886,0.00602979,2486.4,2486.3,5.55507]
[1747762659187,3.2078,2487.0,2486.9,0.8039]
[1747762659381,3.2078,2487.0,2486.8,0.80391]
[1747762659577,0.80394,2486.9,2486.8,2.814445]
[1747762659774,3.2078,2487.0,2486.8,2.010535]
[1747762659982,4.01167,2487.0,2486.9,0.8039]
[1747762660485,3.2078,2487.0,2486.9,2.81439499]
[1747762660890,4.01167,2487.0,2486.9,2.81439499]
[1747762661084,4.01167,2487.0,2486.9,5.55439499]
[1747762661288,3.2078,2487.0,2486.9,5.55439499]
[1747762661489,4.01167,2487.0,2486.9,4.75049499]
[1747762662093,4.01167,2487.0,2486.9,2.74]
[1747762662896,6.022165,2487.0,2486.9,2.74]
[1747762663096,0.80393,2486.8,2486.7,0.80395]
[1747762663291,0.80396,2486.7,2486.6,0.80398]
[1747762663498,7.22807501,2487.0,2486.4,14.51871]
[1747762663499,0.80403,2486.5,2486.4,14.51871]
[1747762664200,0.80403,2486.5,2486.4,19.26961]
[1747762664399,0.80402,2486.6,2486.5,0.80399]
[1747762664791,0.80402,2486.6,2486.5,2.81481]
[1747762665098,4.01182,2486.6,2486.5,0.80399]
[1747762665398,0.80403,2486.5,2486.4,3.2807376]
[1747762665596,2.11773,2486.5,2486.4,3.2807376]
[1747762665792,4.12863001,2486.5,2486.4,3.2807376]
[1747762666101,4.12863001,2486.5,2486.4,0.5407376]
[1747762666396,0.80412,2486.2,2486.1,0.00602979]
[1747762666586,4.01192,2486.2,2486.1,0.00602979]
[1747762666789,6.02306,2486.2,2486.1,0.00602979]
[1747762667198,12.33676,2486.2,2486.1,9.79e-06]
[1747762667398,12.33676,2486.2,2485.5,5.23e-06]
[1747762667399,0.80432,2485.6,2485.5,5.23e-06]
[1747762667600,0.80435,2485.5,2485.4,5.23e-06]
[1747762667899,2.96035,2485.5,2485.4,5.23e-06]
[1747762668095,4.97206,2485.5,2485.4,5.23e-06]
[1747762669701,4.97206,2485.5,2485.4,0.08487]
[1747762670295,9.97206,2485.5,2485.4,0.08486477]
[1747762670491,4.97206,2485.5,2485.4,0.08486477]
[1747762672302,4.97206,2485.5,2485.4,2.82486477]
[1747762674207,4.97206,2485.5,2485.4,0.08486477]
[1747762675107,4.97206,2485.5,2485.4,2.82486477]
[1747762678401,3.2078,2485.6,2485.5,0.80435]
[1747762678606,3.21382979,2485.7,2485.6,0.80432]
[1747762679009,3.21382979,2485.7,2485.6,2.815865]
[1747762679506,4.01811979,2485.7,2485.6,2.815865]
[1747762680204,4.01811979,2485.7,2485.6,2.011545]
[1747762680411,0.80432,2485.6,2485.5,4.0933]
[1747762680605,2.20592,2485.6,2485.5,4.0933]
[1747762680812,2.20592,2485.6,2485.5,6.104925]
[1747762681008,2.20592,2485.6,2485.5,2.74]
[1747762681009,4.217545,2485.6,2485.5,2.74]
[1747762681509,0.80435,2485.5,2485.4,0.08486477]
[1747762681710,15.07195,2485.5,2485.4,0.08486477]
[1747762682010,4.21766,2485.5,2485.4,0.08486477]
[1747762682198,0.80435,2485.5,2485.4,4.83657477]
[1747762682607,2.81606,2485.5,2485.4,2.82486477]
[1747762684217,2.01171,2485.5,2485.4,2.82486477]
[1747762684407,0.00602979,2485.7,2485.6,0.80432]
[1747762684606,0.80432,2485.6,2485.5,2.1279]
[1747762685103,0.80432,2485.6,2485.5,4.139525]
[1747762685308,0.80432,2485.6,2485.5,4.8679]
[1747762685509,0.80432,2485.6,2485.5,6.879525]
[1747762686212,2.815945,2485.6,2485.5,2.74]
[1747762686514,4.177245,2485.6,2485.5,2.74]
[1747762687212,0.80435,2485.5,2485.4,0.08486477]
[1747762687413,2.16565,2485.5,2485.4,0.08486477]
[1747762687612,4.17736,2485.5,2485.4,0.08486477]
[1747762689414,3.37301,2485.5,2484.5,13.67167]
[1747762689612,3.2078,2484.8,2484.6,2.21334]
[1747762689810,3.2078,2484.8,2484.7,2.21331]
[1747762690004,0.80444,2485.3,2485.2,0.80442]
[1747762690315,0.80444,2485.3,2485.2,2.01187]
[1747762693012,0.80444,2485.3,2485.1,4.9656]
[1747762693013,0.80445,2485.2,2485.1,4.9656]
[1747762693405,0.80445,2485.2,2485.1,6.97754999]
[1747762693810,0.80445,2485.2,2485.1,4.9656]
[1747762693811,2.8164,2485.2,2485.1,4.9656]
[1747762694017,2.8164,2485.2,2485.1,5.2874571]
[1747762694217,2.8164,2485.2,2485.1,2.5474571]
[1747762695017,2.8164,2485.2,2485.1,0.3218571]
[1747762695413,0.80454,2484.9,2484.8,1.3498]
[1747762695614,4.01234,2484.9,2484.8,1.3498]
[1747762695809,6.024535,2484.9,2484.8,1.3498]
[1747762696317,6.024535,2484.9,2484.8,4.0898]
[1747762697108,6.024535,2484.9,2484.8,2.74]
[1747762697718,46.824535,2484.9,2484.8,2.74]
[1747762698218,0.80464,2484.6,2484.5,1.3498]
[1747762698515,0.80467,2484.5,2484.4,0.29214607]
[1747762698722,0.80471,2484.4,2484.3,0.7831]
[1747762699119,2.81731,2484.4,2484.3,2.74]
[1747762699918,4.13751,2484.4,2484.3,2.82486477]
[1747762701216,4.13751,2484.4,2484.3,0.08486477]
[1747762701411,4.13751,2484.4,2484.3,4.77e-06]
[1747762701922,0.80487,2483.9,2483.8,2.1337]
[1747762702110,4.01267,2483.9,2483.8,4.8737]
[1747762702310,4.01267,2483.9,2483.8,6.886705]
[1747762702311,3.2078,2483.9,2483.8,6.886705]
[1747762702511,3.2078,2484.2,2484.1,0.8048]
[1747762702927,3.2078,2484.2,2484.1,2.81756]
[1747762703121,54.4487,2484.9,2484.1,2.81756]
[1747762703122,3.2078,2484.5,2484.4,0.80471]
[1747762703314,0.65993102,2485.1,2484.4,0.80471]
[1747762703315,0.80452,2485.0,2484.5,0.80467]
[1747762703517,0.65993102,2485.1,2484.5,2.15527]
[1747762703822,0.65993102,2485.1,2485.0,0.80451]
[1747762704226,1.46441102,2485.1,2485.0,4.75203]
[1747762705529,0.80448,2485.1,2485.0,4.75203]
[1747762705720,3.2078,2485.2,2485.1,0.80448]
[1747762706234,3.2078,2485.2,2485.1,3.55872999]
[1747762706620,4.01225,2485.2,2485.1,2.75424999]
[1747762707223,4.01225,2485.2,2485.1,3.55872999]
[1747762709132,0.00602979,2485.3,2485.2,0.80445]
[1747762709433,0.00602979,2485.3,2485.2,2.16255]
[1747762709636,0.00602979,2485.3,2485.2,4.17442]
[1747762710134,0.81044979,2485.3,2485.2,4.49624324]
[1747762710324,0.00602979,2485.3,2485.2,4.49624324]
[1747762711431,0.81044979,2485.3,2485.2,3.69179324]
[1747762711624,0.81044979,2485.3,2485.2,4.49624324]
[1747762712225,0.00602979,2485.3,2485.2,3.69179324]
[1747762712634,0.00602979,2485.3,2485.2,9.49624324]
[1747762712936,0.80427,2485.8,2485.7,0.80424]
[1747762713133,3.2078,2486.0,2485.6,17.60476]
[1747762713436,4.01199,2486.0,2485.9,0.80422]
[1747762713730,4.01199,2486.0,2485.7,1.3343]
[1747762713731,0.80424,2485.9,2485.8,0.80423]
[1747762713930,0.80424,2485.9,2485.8,12.854]
[1747762714133,0.80424,2485.9,2485.8,17.60538499]
[1747762715032,3.2078,2486.0,2485.8,17.60538499]